fUST/lending_fUST_20250626
["ID","MTS","AMOUNT","RATE_DAILY","PERIOD"]
[367715610,1750900244010,-1605.56,0.00016986,2]
[367715612,1750900244018,-460.0,0.00016986,2]
[367715614,1750900244028,-460.0,0.00016986,2]
[367715616,1750900244037,-460.0,0.00016986,2]
[367715618,1750900244046,-460.0,0.00016986,2]
[367715633,1750900244176,-460.0,0.00016986,2]
[367715635,1750900244186,-1108.98,0.00016986,2]
[367715637,1750900244195,-460.0,0.00016986,2]
[367715639,1750900244204,-460.0,0.00016986,2]
[367715641,1750900244215,-238.05,0.00016986,2]
[367715643,1750900244223,-460.0,0.00016986,2]
[367715645,1750900244233,-460.0,0.00016986,2]
[367715647,1750900244242,-460.0,0.00016986,2]
[367715650,1750900244256,-460.0,0.00016986,2]
[367715651,1750900244265,-460.0,0.00016986,2]
[367715653,1750900244275,-460.0,0.00016986,2]
[367715655,1750900244285,-460.0,0.00016986,2]
[367715657,1750900244294,-460.0,0.00016986,2]
[367715660,1750900244304,-460.0,0.00016986,2]
[367715662,1750900244313,-716.92,0.00016986,2]
[367715664,1750900244322,-460.0,0.00016986,2]
[367715666,1750900244331,-460.0,0.00016986,2]
[367715668,1750900244341,-460.0,0.00016986,2]
[367715670,1750900244351,-460.0,0.00016986,2]
[367715672,1750900244360,-460.0,0.00016986,2]
[367715674,1750900244369,-460.0,0.00016986,2]
[367715676,1750900244378,-767.34,0.00016986,2]
[367715678,1750900244387,-460.0,0.00016986,2]
[367715680,1750900244396,-460.0,0.00016986,2]
[367715682,1750900244405,-460.0,0.00016986,2]
[367715684,1750900244414,-460.0,0.00016986,2]
[367715686,1750900244422,-460.0,0.00016986,2]
[367715687,1750900244431,-460.0,0.00016986,2]
[367715689,1750900244440,-460.0,0.00016986,2]
[367715691,1750900244450,-460.0,0.00016986,2]
[367715693,1750900244458,-460.0,0.00016986,2]
[367715695,1750900244467,-316.2,0.00016986,2]
[367715697,1750900244476,-508.84,0.00016986,2]
[367715699,1750900244485,-460.0,0.00016986,2]
[367715701,1750900244494,-599.49,0.00016986,2]
[367715703,1750900244503,-460.0,0.00016986,2]
[367715705,1750900244513,-460.0,0.00016986,2]
[367715707,1750900244522,-460.0,0.00016986,2]
[367715709,1750900244532,-460.0,0.00016986,2]
[367715711,1750900244540,-166.52,0.00016986,2]
[367715713,1750900244549,-166.76932862,0.00016986,2]
[367715715,1750900244559,-460.0,0.00016986,2]
[367715717,1750900244569,-460.0,0.00016986,2]
[367715720,1750900244578,-460.0,0.00016986,2]
[367715722,1750900244587,-460.0,0.00016986,2]
[367715724,1750900244596,-477.73,0.00016986,2]
[367715726,1750900244605,-460.0,0.00016986,2]
[367715728,1750900244614,-460.0,0.00016986,2]
[367715730,1750900244623,-460.0,0.00016986,2]
[367715732,1750900244633,-460.0,0.00016986,2]
[367715734,1750900244642,-460.0,0.00016986,2]
[367715736,1750900244651,-460.0,0.00016986,2]
[367715738,1750900244660,-460.0,0.00016986,2]
[367715740,1750900244671,-460.0,0.00016986,2]
[367715742,1750900244680,-460.0,0.00016986,2]
[367715744,1750900244689,-476.87,0.00016986,2]
[367715746,1750900244698,-686.41,0.00016986,2]
[367715748,1750900244707,-460.0,0.00016986,2]
[367715750,1750900244716,-460.0,0.00016986,2]
[367715752,1750900244725,-500.0,0.00016986,2]
[367715754,1750900244735,-460.0,0.00016986,2]
[367715756,1750900244747,-460.0,0.00016986,2]
[367715758,1750900244757,-460.0,0.00016986,2]
[367715760,1750900244767,-460.0,0.00016986,2]
[367715762,1750900244776,-460.0,0.00016986,2]
[367715764,1750900244785,-460.0,0.00016986,2]
[367715766,1750900244795,-460.0,0.00016986,2]
[367715768,1750900244803,-460.0,0.00016986,2]
[367715770,1750900244812,-460.0,0.00016986,2]
[367715772,1750900244821,-460.0,0.00016986,2]
[367715774,1750900244831,-460.0,0.00016986,2]
[367715776,1750900244840,-460.0,0.00016986,2]
[367715779,1750900244850,-460.0,0.00016986,2]
[367715781,1750900244859,-494.46,0.00016986,2]
[367715782,1750900244868,-500.0,0.00016991,2]
[367715784,1750900244877,-500.0,0.00016997,2]
[367715786,1750900244886,-500.0,0.00016997,2]
[367715788,1750900244895,-500.0,0.00016997,2]
[367715790,1750900244905,-440.36417818,0.00016997,2]
[367715792,1750900244914,-500.0,0.00016997,2]
[367715794,1750900244924,-500.0,0.00016997,2]
[367715796,1750900244933,-500.0,0.00017196,2]
[367715798,1750900244942,-503.14017611,0.00017197,2]
[367715800,1750900244951,-500.0,0.00017197,2]
[367715802,1750900244960,-500.0,0.00017197,2]
[367715804,1750900244969,-500.0,0.00017197,2]
[367715806,1750900244978,-500.0,0.00017222,2]
[367715808,1750900244987,-323.57981548,0.00017223,2]
[367715810,1750900244996,-404.84787253,0.00017259,2]
[367715812,1750900245005,-460.0,0.0001726,2]
[367715814,1750900245015,-424.98,0.0001726,2]
[367715816,1750900245024,-524.73,0.0001726,2]
[367715818,1750900245034,-460.0,0.0001726,2]
[367715820,1750900245043,-460.0,0.0001726,2]
[367715822,1750900245053,-460.0,0.0001726,2]
[367715824,1750900245062,-460.0,0.0001726,2]
[367715826,1750900245071,-460.0,0.0001726,2]
[367715828,1750900245080,-460.0,0.0001726,2]
[367715830,1750900245089,-460.0,0.0001726,2]
[367715832,1750900245098,-460.0,0.0001726,2]
[367715834,1750900245108,-200.94,0.0001726,2]
[367715836,1750900245116,-460.0,0.0001726,2]
[367715838,1750900245126,-292.08,0.0001726,2]
[367715840,1750900245135,-460.0,0.0001726,2]
[367715842,1750900245144,-460.0,0.0001726,2]
[367715845,1750900245154,-460.0,0.0001726,2]
[367715847,1750900245163,-460.0,0.0001726,2]
[367715849,1750900245172,-460.0,0.0001726,2]
[367715851,1750900245182,-460.0,0.0001726,2]
[367715853,1750900245191,-460.0,0.0001726,2]
[367715855,1750900245200,-399.07,0.0001726,2]
[367715857,1750900245209,-460.0,0.0001726,2]
[367715859,1750900245218,-460.0,0.0001726,2]
[367715861,1750900245227,-460.0,0.0001726,2]
[367715863,1750900245237,-460.0,0.0001726,2]
[367715865,1750900245246,-316.66,0.0001726,2]
[367715867,1750900245256,-460.0,0.0001726,2]
[367715869,1750900245265,-430.57,0.0001726,2]
[367715871,1750900245274,-460.0,0.0001726,2]
[367715873,1750900245283,-460.0,0.0001726,2]
[367715875,1750900245293,-514.4684472,0.0001726,2]
[367715877,1750900245301,-363.66,0.0001726,2]
[367715879,1750900245311,-460.0,0.0001726,2]
[367715881,1750900245320,-460.0,0.0001726,2]
[367715883,1750900245329,-460.0,0.0001726,2]
[367715885,1750900245338,-460.0,0.0001726,2]
[367715887,1750900245346,-456.37,0.0001726,2]
[367715888,1750900245356,-460.0,0.0001726,2]
[367715890,1750900245365,-460.0,0.0001726,2]
[367715893,1750900245374,-460.0,0.0001726,2]
[367715894,1750900245383,-460.0,0.0001726,2]
[367715897,1750900245392,-460.0,0.0001726,2]
[367715899,1750900245402,-563.44,0.0001726,2]
[367715901,1750900245411,-460.0,0.0001726,2]
[367715903,1750900245420,-460.0,0.0001726,2]
[367715905,1750900245429,-699.31,0.0001726,2]
[367715907,1750900245438,-460.0,0.0001726,2]
[367715909,1750900245447,-578.96,0.0001726,2]
[367715911,1750900245458,-460.0,0.0001726,2]
[367715912,1750900245467,-460.0,0.0001726,2]
[367715914,1750900245476,-573.72,0.0001726,2]
[367715916,1750900245485,-460.0,0.0001726,2]
[367715918,1750900245494,-1914.05,0.0001726,2]
[367715920,1750900245503,-460.0,0.0001726,2]
[367715922,1750900245512,-460.0,0.0001726,2]
[367715924,1750900245522,-460.0,0.0001726,2]
[367715925,1750900245530,-460.0,0.0001726,2]
[367715926,1750900245540,-460.0,0.0001726,2]
[367715927,1750900245549,-489.04,0.0001726,2]
[367715928,1750900245558,-460.0,0.0001726,2]
[367715929,1750900245567,-460.0,0.0001726,2]
[367715930,1750900245575,-460.0,0.0001726,2]
[367715931,1750900245584,-705.61,0.0001726,2]
[367715932,1750900245593,-1605.56,0.0001726,2]
[367715933,1750900245601,-460.0,0.0001726,2]
[367715934,1750900245610,-601.9,0.0001726,2]
[367715935,1750900245619,-460.0,0.0001726,2]
[367715936,1750900245627,-460.0,0.0001726,2]
[367715937,1750900245639,-460.0,0.0001726,2]
[367715938,1750900245648,-1108.98,0.0001726,2]
[367715939,1750900245657,-460.0,0.0001726,2]
[367715940,1750900245666,-460.0,0.0001726,2]
[367715941,1750900245675,-512.5,0.0001726,2]
[367715942,1750900245684,-460.0,0.0001726,2]
[367715943,1750900245693,-460.0,0.0001726,2]
[367715944,1750900245702,-460.0,0.0001726,2]
[367715946,1750900245711,-460.0,0.0001726,2]
[367715948,1750900245720,-460.0,0.0001726,2]
[367715950,1750900245730,-528.32,0.0001726,2]
[367715952,1750900245739,-460.0,0.0001726,2]
[367715954,1750900245748,-460.0,0.0001726,2]
[367715956,1750900245757,-716.92,0.0001726,2]
[367715958,1750900245766,-460.0,0.0001726,2]
[367715960,1750900245776,-460.0,0.0001726,2]
[367715962,1750900245785,-460.0,0.0001726,2]
[367715964,1750900245794,-460.0,0.0001726,2]
[367715966,1750900245803,-460.0,0.0001726,2]
[367715969,1750900245812,-460.0,0.0001726,2]
[367715972,1750900245821,-767.34,0.0001726,2]
[367715974,1750900245830,-460.0,0.0001726,2]
[367715976,1750900245840,-460.0,0.0001726,2]
[367715978,1750900245849,-460.0,0.0001726,2]
[367715981,1750900245858,-460.0,0.0001726,2]
[367715983,1750900245868,-460.0,0.0001726,2]
[367715985,1750900245876,-460.0,0.0001726,2]
[367715987,1750900245885,-460.0,0.0001726,2]
[367715988,1750900245894,-460.0,0.0001726,2]
[367715990,1750900245904,-510.95,0.0001726,2]
[367715992,1750900245914,-460.0,0.0001726,2]
[367715994,1750900245924,-460.0,0.0001726,2]
[367715996,1750900245933,-460.0,0.0001726,2]
[367715998,1750900245942,-567.69092065,0.0001726,2]
[367716000,1750900245952,-460.0,0.0001726,2]
[367716002,1750900245961,-161.2,0.0001726,2]
[367716004,1750900245970,-460.0,0.0001726,2]
[367716006,1750900245979,-477.73,0.0001726,2]
[367716008,1750900245988,-460.0,0.0001726,2]
[367716010,1750900245997,-460.0,0.0001726,2]
[367716012,1750900246006,-460.0,0.0001726,2]
[367716014,1750900246015,-460.0,0.0001726,2]
[367716016,1750900246025,-460.0,0.0001726,2]
[367716018,1750900246034,-460.0,0.0001726,2]
[367716020,1750900246044,-460.0,0.0001726,2]
[367716022,1750900246053,-460.0,0.0001726,2]
[367716024,1750900246062,-460.0,0.0001726,2]
[367716026,1750900246071,-476.87,0.0001726,2]
[367716028,1750900246081,-686.41,0.0001726,2]
[367716030,1750900246090,-460.0,0.0001726,2]
[367716032,1750900246099,-460.0,0.0001726,2]
[367716035,1750900246109,-227.39,0.0001726,2]
[367716037,1750900246119,-460.0,0.0001726,2]
[367716039,1750900246127,-460.0,0.0001726,2]
[367716041,1750900246137,-460.0,0.0001726,2]
[367716043,1750900246146,-460.0,0.0001726,2]
[367716044,1750900246156,-460.0,0.0001726,2]
[367716046,1750900246166,-460.0,0.0001726,2]
[367716048,1750900246180,-460.0,0.0001726,2]
[367716050,1750900246190,-460.0,0.0001726,2]
[367716052,1750900246199,-460.0,0.0001726,2]
[367716054,1750900246207,-460.0,0.0001726,2]
[367716056,1750900246218,-460.0,0.0001726,2]
[367716058,1750900246227,-460.0,0.0001726,2]
[367716060,1750900246237,-460.0,0.0001726,2]
[367716062,1750900246246,-494.46,0.0001726,2]
[367716064,1750900246255,-500.0,0.00017341,2]
[367716066,1750900246264,-1731.99317622,0.00017434,2]
[367716068,1750900246273,-182.68,0.00017534,2]
[367716070,1750900246282,-460.0,0.00017534,2]
[367716072,1750900246291,-251.52,0.00017534,2]
[367716074,1750900246300,-460.0,0.00017534,2]
[367716076,1750900246309,-183.92,0.00017534,2]
[367716078,1750900246318,-460.0,0.00017534,2]
[367716080,1750900246327,-202.2,0.00017534,2]
[367716082,1750900246337,-460.0,0.00017534,2]
[367716084,1750900246347,-460.0,0.00017534,2]
[367716086,1750900246356,-699.31,0.00017534,2]
[367716088,1750900246366,-573.72,0.00017534,2]
[367716090,1750900246375,-1914.05,0.00017534,2]
[367716092,1750900246384,-454.68,0.00017534,2]
[367716094,1750900246393,-460.0,0.00017534,2]
[367716096,1750900246402,-460.0,0.00017534,2]
[367716098,1750900246411,-705.61,0.00017534,2]
[367716100,1750900246420,-1605.56,0.00017534,2]
[367716102,1750900246430,-460.0,0.00017534,2]
[367716104,1750900246439,-1108.98,0.00017534,2]
[367716106,1750900246449,-460.0,0.00017534,2]
[367716108,1750900246458,-395.68,0.00017534,2]
[367716110,1750900246467,-460.0,0.00017534,2]
[367716112,1750900246477,-716.92,0.00017534,2]
[367716114,1750900246487,-460.0,0.00017534,2]
[367716116,1750900246496,-460.0,0.00017534,2]
[367716118,1750900246505,-767.34,0.00017534,2]
[367716120,1750900246514,-460.0,0.00017534,2]
[367716122,1750900246523,-460.0,0.00017534,2]
[367716124,1750900246533,-460.0,0.00017534,2]
[367716125,1750900246542,-460.0,0.00017534,2]
[367716127,1750900246551,-447.92,0.00017534,2]
[367716129,1750900246560,-460.0,0.00017534,2]
[367716131,1750900246570,-460.0,0.00017534,2]
[367716133,1750900246579,-460.0,0.00017534,2]
[367716135,1750900246588,-460.0,0.00017534,2]
[367716137,1750900246597,-477.73,0.00017534,2]
[367716139,1750900246606,-460.0,0.00017534,2]
[367716141,1750900246616,-460.0,0.00017534,2]
[367716143,1750900246625,-460.0,0.00017534,2]
[367716145,1750900246634,-460.0,0.00017534,2]
[367716147,1750900246643,-476.87,0.00017534,2]
[367716149,1750900246652,-686.41,0.00017534,2]
[367716151,1750900246661,-460.0,0.00017534,2]
[367716153,1750900246670,-460.0,0.00017534,2]
[367716155,1750900246679,-460.0,0.00017534,2]
[367716157,1750900246688,-460.0,0.00017534,2]
[367716159,1750900246698,-198.23,0.00017534,2]
[367716161,1750900246707,-494.46,0.00017534,2]
[367716163,1750900246716,-267.1928808,0.00017579,2]
[367716165,1750900246725,-409.28,0.00017808,2]
[367716167,1750900246735,-460.0,0.00017808,2]
[367716169,1750900246744,-357.88,0.00017808,2]
[367716171,1750900246754,-243.12,0.00017808,2]
[367716173,1750900246763,-547.69,0.00017808,2]
[367716175,1750900246772,-699.31,0.00017808,2]
[367716177,1750900246781,-573.72,0.00017808,2]
[367716179,1750900246790,-1914.05,0.00017808,2]
[367716181,1750900246799,-265.8,0.00017808,2]
[367716183,1750900246807,-460.0,0.00017808,2]
[367716185,1750900246816,-1605.56,0.00017808,2]
[367716187,1750900246825,-705.61,0.00017808,2]
[367716189,1750900246835,-460.0,0.00017808,2]
[367716191,1750900246843,-1108.98,0.00017808,2]
[367716193,1750900246853,-460.0,0.00017808,2]
[367716195,1750900246862,-460.0,0.00017808,2]
[367716197,1750900246871,-716.92,0.00017808,2]
[367716199,1750900246881,-460.0,0.00017808,2]
[367716201,1750900246890,-460.0,0.00017808,2]
[367716203,1750900246900,-767.34,0.00017808,2]
[367716205,1750900246909,-460.0,0.00017808,2]
[367716207,1750900246918,-460.0,0.00017808,2]
[367716209,1750900246928,-460.0,0.00017808,2]
[367716211,1750900246938,-460.0,0.00017808,2]
[367716213,1750900246947,-460.0,0.00017808,2]
[367716215,1750900246957,-446.84,0.00017808,2]
[367716229,1750900247081,-460.0,0.00017808,2]
[367716232,1750900247092,-460.0,0.00017808,2]
[367716233,1750900247102,-477.73,0.00017808,2]
[367716235,1750900247111,-154.52,0.00017808,2]
[367716237,1750900247120,-460.0,0.00017808,2]
[367716239,1750900247129,-460.0,0.00017808,2]
[367716241,1750900247139,-460.0,0.00017808,2]
[367716243,1750900247148,-476.87,0.00017808,2]
[367716245,1750900247158,-686.41,0.00017808,2]
[367716247,1750900247167,-298.84,0.00017808,2]
[367716250,1750900247178,-460.0,0.00017808,2]
[367716251,1750900247187,-460.0,0.00017808,2]
[367716253,1750900247199,-460.0,0.00017808,2]
[367716255,1750900247208,-494.46,0.00017808,2]
[367716256,1750900247217,-739.45592366,0.000179,2]
[367716257,1750900247226,-160.0,0.00017932,2]
[367716258,1750900247235,-160.0,0.00017932,2]
[367716259,1750900247244,-425.18553072,0.00017932,2]
[367716260,1750900247253,-12558.06783089,0.00017932,2]
[367716261,1750900247263,-160.0,0.00017932,2]
[367716262,1750900247272,-160.0,0.00017932,2]
[367716263,1750900247281,-846.80634355,0.00017932,2]
[367716264,1750900247290,-836.86812089,0.00017932,2]
[367716265,1750900247299,-230.22714675,0.00017932,2]
[367716266,1750900247308,-160.0,0.00017932,2]
[367716267,1750900247317,-213.69531788,0.00017932,2]
[367716268,1750900247326,-420.0,0.00017963,2]
[367716269,1750900247335,-460.0,0.00018082,2]
[367716270,1750900247344,-699.31,0.00018082,2]
[367716271,1750900247353,-573.72,0.00018082,2]
[367716272,1750900247362,-1914.05,0.00018082,2]
[367716273,1750900247371,-460.0,0.00018082,2]
[367716274,1750900247380,-1605.56,0.00018082,2]
[367716275,1750900247389,-705.61,0.00018082,2]
[367716276,1750900247398,-460.0,0.00018082,2]
[367716277,1750900247407,-1108.98,0.00018082,2]
[367716278,1750900247417,-460.0,0.00018082,2]
[367716279,1750900247426,-460.0,0.00018082,2]
[367716280,1750900247435,-716.92,0.00018082,2]
[367716281,1750900247445,-460.0,0.00018082,2]
[367716282,1750900247453,-460.0,0.00018082,2]
[367716283,1750900247462,-767.34,0.00018082,2]
[367716284,1750900247472,-460.0,0.00018082,2]
[367716285,1750900247481,-460.0,0.00018082,2]
[367716286,1750900247490,-460.0,0.00018082,2]
[367716287,1750900247499,-550.96,0.00018082,2]
[367716289,1750900247508,-460.0,0.00018082,2]
[367716291,1750900247518,-460.0,0.00018082,2]
[367716293,1750900247527,-303.76,0.00018082,2]
[367716295,1750900247536,-477.73,0.00018082,2]
[367716297,1750900247545,-538.72,0.00018082,2]
[367716299,1750900247554,-460.0,0.00018082,2]
[367716301,1750900247563,-224.72,0.00018082,2]
[367716302,1750900247573,-476.87,0.00018082,2]
[367716304,1750900247582,-686.41,0.00018082,2]
[367716306,1750900247591,-460.0,0.00018082,2]
[367716308,1750900247600,-218.88,0.00018082,2]
[367716310,1750900247610,-460.0,0.00018082,2]
[367716312,1750900247619,-494.46,0.00018082,2]
[367716314,1750900247627,-739.45592366,0.00018176,2]
[367716316,1750900247637,-1731.99317622,0.00018256,2]
[367716318,1750900247647,-460.0,0.00018356,2]
[367716320,1750900247656,-699.31,0.00018356,2]
[367716322,1750900247665,-573.72,0.00018356,2]
[367716324,1750900247675,-1914.05,0.00018356,2]
[367716326,1750900247684,-460.0,0.00018356,2]
[367716328,1750900247694,-1605.56,0.00018356,2]
[367716330,1750900247703,-705.61,0.00018356,2]
[367716332,1750900247713,-334.6,0.00018356,2]
[367716334,1750900247722,-1108.98,0.00018356,2]
[367716336,1750900247731,-460.0,0.00018356,2]
[367716338,1750900247741,-460.0,0.00018356,2]
[367716340,1750900247750,-716.92,0.00018356,2]
[367716342,1750900247759,-460.0,0.00018356,2]
[367716344,1750900247769,-460.0,0.00018356,2]
[367716346,1750900247778,-767.34,0.00018356,2]
[367716348,1750900247787,-460.0,0.00018356,2]
[367716350,1750900247795,-391.24,0.00018356,2]
[367716352,1750900247804,-460.0,0.00018356,2]
[367716354,1750900247814,-460.0,0.00018356,2]
[367716356,1750900247824,-188.15222913,0.00018356,2]
[367716358,1750900247833,-477.73,0.00018356,2]
[367716360,1750900247842,-460.0,0.00018356,2]
[367716362,1750900247851,-476.87,0.00018356,2]
[367716364,1750900247861,-686.41,0.00018356,2]
[367716366,1750900247869,-485.74184774,0.00018356,2]
[367716368,1750900247879,-460.0,0.00018356,2]
[367716370,1750900247888,-494.46,0.00018356,2]
[367716372,1750900247898,-739.45592366,0.00018452,2]
[367716374,1750900247906,-1935.7459013,0.00018592,2]
[367716376,1750900247917,-460.0,0.0001863,2]
[367716377,1750900247926,-699.31,0.0001863,2]
[367716378,1750900247935,-573.72,0.0001863,2]
[367716379,1750900247944,-1914.05,0.0001863,2]
[367716380,1750900247953,-460.0,0.0001863,2]
[367716381,1750900247962,-1605.56,0.0001863,2]
[367716382,1750900247971,-705.61,0.0001863,2]
[367716383,1750900247980,-1108.98,0.0001863,2]
[367716385,1750900247989,-460.0,0.0001863,2]
[367716387,1750900247998,-460.0,0.0001863,2]
[367716389,1750900248008,-716.92,0.0001863,2]
[367716392,1750900248017,-460.0,0.0001863,2]
[367716393,1750900248026,-460.0,0.0001863,2]
[367716395,1750900248035,-767.34,0.0001863,2]
[367716397,1750900248044,-460.0,0.0001863,2]
[367716399,1750900248053,-467.72,0.0001863,2]
[367716401,1750900248062,-460.0,0.0001863,2]
[367716403,1750900248071,-477.73,0.0001863,2]
[367716405,1750900248080,-460.0,0.0001863,2]
[367716407,1750900248089,-476.87,0.0001863,2]
[367716409,1750900248098,-686.41,0.0001863,2]
[367716411,1750900248107,-460.0,0.0001863,2]
[367716413,1750900248117,-494.46,0.0001863,2]
[367716416,1750900248127,-739.45592366,0.00018728,2]
[367716418,1750900248136,-151.0,0.00018797,2]
[367716420,1750900248145,-5000.0,0.00018797,2]
[367716422,1750900248154,-500.0,0.00018797,2]
[367716424,1750900248163,-388.0,0.00018797,2]
[367716426,1750900248172,-500.0,0.00018797,2]
[367716427,1750900248181,-500.0,0.00018797,2]
[367716430,1750900248194,-500.0,0.00018797,2]
[367716432,1750900248204,-500.0,0.00018797,2]
[367716434,1750900248213,-500.0,0.00018797,2]
[367716436,1750900248223,-500.0,0.00018797,2]
[367716438,1750900248232,-500.0,0.00018797,2]
[367716440,1750900248243,-500.0,0.00018797,2]
[367716442,1750900248252,-500.0,0.00018797,2]
[367716444,1750900248261,-500.0,0.00018797,2]
[367716446,1750900248270,-500.0,0.00018797,2]
[367716448,1750900248280,-500.0,0.00018797,2]
[367716450,1750900248288,-500.0,0.00018797,2]
[367716452,1750900248298,-500.0,0.00018797,2]
[367716453,1750900248307,-500.0,0.00018797,2]
[367716455,1750900248316,-207.4,0.00018797,2]
[367716457,1750900248325,-500.0,0.00018797,2]
[367716459,1750900248335,-500.0,0.00018797,2]
[367716462,1750900248344,-500.0,0.00018797,2]
[367716464,1750900248353,-500.0,0.00018797,2]
[367716465,1750900248363,-500.0,0.00018797,2]
[367716469,1750900248383,-500.0,0.00018797,2]
[367716471,1750900248393,-646.18962568,0.00018797,2]
[367716473,1750900248402,-500.0,0.00018797,2]
[367716475,1750900248411,-500.0,0.00018797,2]
[367716477,1750900248421,-500.0,0.00018797,2]
[367716479,1750900248431,-500.0,0.00018797,2]
[367716481,1750900248440,-500.0,0.00018797,2]
[367716483,1750900248450,-500.0,0.00018797,2]
[367716485,1750900248460,-500.0,0.00018797,2]
[367716487,1750900248470,-500.0,0.00018797,2]
[367716489,1750900248479,-25000.0,0.00018797,2]
[367716491,1750900248488,-2055.79261889,0.00018797,2]
[367716493,1750900248498,-267.1928808,0.0001882,2]
[367716495,1750900248508,-402.356,0.00018852,2]
[367716497,1750900248517,-2894.32539419,0.000189,2]
[367716499,1750900248527,-460.0,0.00018904,2]
[367716501,1750900248536,-699.31,0.00018904,2]
[367716503,1750900248546,-573.72,0.00018904,2]
[367716505,1750900248555,-1914.05,0.00018904,2]
[367716507,1750900248564,-460.0,0.00018904,2]
[367716509,1750900248574,-1605.56,0.00018904,2]
[367716512,1750900248583,-705.61,0.00018904,2]
[367716514,1750900248593,-1108.98,0.00018904,2]
[367716516,1750900248603,-508.77,0.00018904,2]
[367716517,1750900248612,-460.0,0.00018904,2]
[367716519,1750900248623,-716.92,0.00018904,2]
[367716521,1750900248633,-460.0,0.00018904,2]
[367716523,1750900248643,-460.0,0.00018904,2]
[367716525,1750900248652,-767.34,0.00018904,2]
[367716527,1750900248663,-460.0,0.00018904,2]
[367716529,1750900248672,-460.0,0.00018904,2]
[367716531,1750900248682,-477.73,0.00018904,2]
[367716533,1750900248691,-322.46,0.00018904,2]
[367716535,1750900248701,-476.87,0.00018904,2]
[367716537,1750900248712,-686.41,0.00018904,2]
[367716539,1750900248722,-460.0,0.00018904,2]
[367716541,1750900248731,-417.243172,0.00018907,2]
[367716543,1750900248741,-432.68116936,0.00018962,2]
[367716545,1750900248751,-739.45592366,0.00019003,2]
[367716548,1750900248761,-448.69037263,0.00019017,2]
[367716550,1750900248771,-230.0,0.00019059,2]
[367716552,1750900248781,-465.29191642,0.00019072,2]
[367716554,1750900248791,-1731.99317622,0.00019078,2]
[367716556,1750900248800,-482.50771733,0.00019127,2]
[367716558,1750900248810,-460.0,0.00019178,2]
[367716560,1750900248820,-699.31,0.00019178,2]
[367716562,1750900248830,-573.72,0.00019178,2]
[367716564,1750900248839,-1914.05,0.00019178,2]
[367716566,1750900248849,-460.0,0.00019178,2]
[367716568,1750900248858,-1605.56,0.00019178,2]
[367716570,1750900248868,-705.61,0.00019178,2]
[367716572,1750900248877,-1108.98,0.00019178,2]
[367716574,1750900248886,-460.0,0.00019178,2]
[367716576,1750900248896,-716.92,0.00019178,2]
[367716578,1750900248905,-460.0,0.00019178,2]